fUSD/lending_fUSD_20241223
["ID","MTS","AMOUNT","RATE_DAILY","PERIOD"]
[346455129,1734983446320,-500.0,0.00013698,2]
[346455130,1734983446330,-500.0,0.00013698,2]
[346455131,1734983446339,-508.97,0.00013698,2]
[346455132,1734983446348,-20926.66,0.00013698,2]
[346455133,1734983446357,-829.84,0.00013698,2]
[346455134,1734983446366,-500.0,0.00013698,2]
[346455135,1734983446376,-500.0,0.00013698,2]
[346455136,1734983446385,-3757.16,0.00013698,2]
[346455137,1734983446394,-500.0,0.00013698,2]
[346455138,1734983446403,-7925.4,0.00013698,2]
[346455139,1734983446412,-607.52,0.00013698,2]
[346455140,1734983446422,-500.0,0.00013698,2]
[346455141,1734983446432,-500.0,0.00013698,2]
[346455142,1734983446441,-503.81018042,0.00013698,2]
[346455143,1734983446450,-2302.97,0.00013698,2]
[346455144,1734983446459,-500.0,0.00013698,2]
[346455145,1734983446468,-500.0,0.00013698,2]
[346455146,1734983446477,-500.0,0.00013698,2]
[346455147,1734983446487,-495.70178101,0.00013698,2]
[346455148,1734983446496,-500.0,0.00013698,2]
[346455149,1734983446509,-500.0,0.00013698,2]
[346455150,1734983446519,-7966.95,0.00013698,2]
[346455151,1734983446528,-1003.84,0.00013698,2]
[346455152,1734983446538,-2515.91,0.00013698,2]
[346455153,1734983446547,-2630.63,0.00013698,2]
[346455154,1734983446556,-698.68,0.00013698,2]
[346455155,1734983446566,-500.0,0.00013698,2]
[346455156,1734983446576,-839.13,0.00013698,2]
[346455157,1734983446586,-535.47388484,0.00013698,2]
[346455158,1734983446596,-9927.13,0.00013698,2]
[346455159,1734983446605,-1217.3,0.00013698,2]
[346455160,1734983446615,-500.0,0.00013698,2]
[346455161,1734983446625,-2519.57,0.00013698,2]
[346455162,1734983446635,-500.0,0.00013698,2]
[346455163,1734983446644,-200.09894107,0.00013698,2]
[346455164,1734983446654,-1299.48,0.00013698,2]
[346455165,1734983446663,-501.28807021,0.00013698,2]
[346455166,1734983446675,-500.0,0.00013698,2]
[346455167,1734983446684,-4244.12,0.00013698,2]
[346455168,1734983446693,-1241.24,0.00013698,2]
[346455169,1734983446703,-500.0,0.00013698,2]
[346455170,1734983446712,-500.0,0.00013698,2]
[346455171,1734983446721,-500.0,0.00013698,2]
[346455172,1734983446731,-1685.46,0.00013698,2]
[346455173,1734983446740,-500.0,0.00013698,2]
[346455174,1734983446751,-500.0,0.00013698,2]
[346455175,1734983446760,-500.0,0.00013698,2]
[346455176,1734983446770,-1846.67,0.00013698,2]
[346455177,1734983446780,-500.0,0.00013698,2]
[346455178,1734983446789,-500.0,0.00013698,2]
[346455179,1734983446799,-614.81,0.00013698,2]
[346455180,1734983446808,-500.0,0.00013698,2]
[346455181,1734983446818,-500.0,0.00013698,2]
[346455182,1734983446827,-500.0,0.00013698,2]
[346455183,1734983446836,-3928.29,0.00013698,2]
[346455184,1734983446846,-370.81705403,0.00013698,2]
[346455185,1734983446855,-500.0,0.00013698,2]
[346455186,1734983446864,-500.0,0.00013698,2]
[346455187,1734983446874,-500.0,0.00013698,2]
[346455188,1734983446883,-500.0,0.00013698,2]
[346455189,1734983446893,-500.0,0.00013698,2]
[346455190,1734983446903,-500.0,0.00013698,2]
[346455191,1734983446913,-4088.25,0.00013698,2]
[346455192,1734983446922,-500.0,0.00013698,2]
[346455193,1734983446932,-2122.09,0.00013698,2]
[346455194,1734983446942,-500.0,0.00013698,2]
[346455195,1734983446951,-695.21,0.00013698,2]
[346455196,1734983446960,-500.0,0.00013698,2]
[346455197,1734983446969,-500.0,0.00013698,2]
[346455198,1734983446978,-500.0,0.00013698,2]
[346455199,1734983446988,-3723.91,0.00013698,2]
[346455200,1734983446998,-500.0,0.00013698,2]
[346455201,1734983447009,-1404.9,0.00013698,2]
[346455202,1734983447018,-502.1193411,0.00013698,2]
[346455203,1734983447028,-8672.72,0.00013698,2]
[346455204,1734983447038,-500.0,0.00013698,2]
[346455205,1734983447048,-500.0,0.00013698,2]
[346455206,1734983447057,-292.37392117,0.00013698,2]
[346455207,1734983447066,-500.0,0.00013698,2]
[346455208,1734983447076,-500.0,0.00013698,2]
[346455209,1734983447085,-500.0,0.00013698,2]
[346455210,1734983447095,-504.62458144,0.00013698,2]
[346455211,1734983447105,-1878.68,0.00013698,2]
[346455212,1734983447114,-1063.46,0.00013698,2]
[346455213,1734983447124,-7447.88,0.00013698,2]
[346455214,1734983447134,-2573.11,0.00013698,2]
[346455215,1734983447143,-8864.44,0.00013698,2]
[346455216,1734983447231,-26356.9,0.00013698,2]
[346455217,1734983447241,-3886.04,0.00013698,2]
[346455218,1734983447251,-500.0,0.00013698,2]
[346455219,1734983447261,-5445.13,0.00013698,2]
[346455220,1734983447270,-1319.96,0.00013698,2]
[346455221,1734983447279,-500.0,0.00013698,2]
[346455222,1734983447289,-500.0,0.00013698,2]
[346455223,1734983447299,-500.0,0.00013698,2]
[346455224,1734983447307,-3366.1,0.00013698,2]
[346455225,1734983447316,-500.0,0.00013698,2]
[346455226,1734983447325,-500.0,0.00013698,2]
[346455227,1734983447334,-500.0,0.00013698,2]
[346455228,1734983447344,-8257.73,0.00013698,2]
[346455229,1734983447353,-500.0,0.00013698,2]
[346455230,1734983447362,-1348.11,0.00013698,2]
[346455231,1734983447372,-500.0,0.00013698,2]
[346455232,1734983447381,-500.0,0.00013698,2]
[346455233,1734983447391,-500.0,0.00013698,2]
[346455234,1734983447400,-500.0,0.00013698,2]
[346455235,1734983447409,-500.0,0.00013698,2]
[346455236,1734983447418,-1344.55,0.00013698,2]
[346455237,1734983447427,-500.0,0.00013698,2]
[346455238,1734983447436,-1044.67,0.00013698,2]
[346455239,1734983447445,-590.09,0.00013698,2]
[346455240,1734983447454,-1845.89,0.00013698,2]
[346455241,1734983447463,-2303.4,0.00013698,2]
[346455242,1734983447472,-3629.68,0.00013698,2]
[346455243,1734983447481,-500.0,0.00013698,2]
[346455244,1734983447490,-500.0,0.00013698,2]
[346455245,1734983447500,-646.74,0.00013698,2]
[346455246,1734983447509,-500.0,0.00013698,2]
[346455247,1734983447519,-1782.54,0.00013698,2]
[346455248,1734983447528,-1508.2,0.00013698,2]
[346455249,1734983447537,-500.0,0.00013698,2]
[346455250,1734983447546,-3087.07,0.00013698,2]
[346455251,1734983447555,-500.0,0.00013698,2]
[346455252,1734983447564,-1473.1,0.00013698,2]
[346455253,1734983447573,-500.0,0.00013698,2]
[346455254,1734983447582,-2479.51,0.00013698,2]
[346455255,1734983447591,-4816.5,0.00013698,2]
[346455256,1734983447601,-500.0,0.00013698,2]
[346455257,1734983447610,-500.0,0.00013698,2]
[346455258,1734983447620,-500.0,0.00013698,2]
[346455259,1734983447629,-614.37,0.00013698,2]
[346455260,1734983447638,-594.99,0.00013698,2]
[346455261,1734983447647,-500.0,0.00013698,2]
[346455262,1734983447656,-1302.53,0.00013698,2]
[346455263,1734983447665,-500.0,0.00013698,2]
[346455264,1734983447674,-2115.39,0.00013698,2]
[346455265,1734983447683,-4086.58,0.00013698,2]
[346455266,1734983447692,-1084.22,0.00013698,2]
[346455267,1734983447702,-500.0,0.00013698,2]
[346455268,1734983447710,-500.0,0.00013698,2]
[346455269,1734983447719,-1886.31,0.00013698,2]
[346455270,1734983447728,-500.0,0.00013698,2]
[346455271,1734983447737,-200.0,0.00013699,2]
[346455272,1734983447747,-150.39,0.00013699,2]
[346455273,1734983447758,-294.52,0.00013699,2]
[346455274,1734983447767,-5377.1,0.00013699,2]
[346455275,1734983447776,-164.09,0.00013744,2]
[346455276,1734983447786,-166.26,0.00013756,2]
[346455277,1734983447796,-2490.49522683,0.00013872,2]
[346455278,1734983447806,-165.1905704,0.00013872,2]
[346455279,1734983447815,-318.95204584,0.00013962,2]
[346455280,1734983447824,-500.62606987,0.0001397,2]
[346455281,1734983447833,-500.0,0.0001397,2]
[346455282,1734983447843,-500.0,0.0001397,2]
[346455283,1734983447852,-7500.0,0.00013971,2]
[346455284,1734983447861,-7500.0,0.00013971,2]
[346455285,1734983447870,-7500.0,0.00013971,2]
[346455286,1734983447880,-2916.37371799,0.00013971,2]
[346455287,1734983447889,-500.0,0.00013971,2]
[346455288,1734983447898,-500.0,0.00013971,2]
[346455289,1734983447908,-757.99,0.00013972,2]
[346455290,1734983447918,-500.0,0.00013972,2]
[346455291,1734983447927,-1506.47,0.00013972,2]
[346455292,1734983447936,-500.0,0.00013972,2]
[346455293,1734983447945,-500.0,0.00013972,2]
[346455294,1734983447955,-622.17,0.00013972,2]
[346455295,1734983447965,-500.0,0.00013972,2]
[346455296,1734983447975,-745.34,0.00013972,2]
[346455297,1734983447985,-1355.56,0.00013972,2]
[346455298,1734983447994,-500.0,0.00013972,2]
[346455299,1734983448004,-500.0,0.00013972,2]
[346455300,1734983448014,-500.0,0.00013972,2]
[346455301,1734983448024,-510.61519213,0.00013972,2]
[346455302,1734983448033,-500.0,0.00013972,2]
[346455303,1734983448043,-943.39,0.00013972,2]
[346455304,1734983448053,-500.0,0.00013972,2]
[346455305,1734983448063,-500.0,0.00013972,2]
[346455306,1734983448072,-500.0,0.00013972,2]
[346455307,1734983448082,-500.0,0.00013972,2]
[346455308,1734983448092,-500.0,0.00013972,2]
[346455309,1734983448102,-500.0,0.00013972,2]
[346455310,1734983448112,-500.0,0.00013972,2]
[346455311,1734983448121,-500.0,0.00013972,2]
[346455312,1734983448131,-1112.52,0.00013972,2]
[346455313,1734983448140,-500.0,0.00013972,2]
[346455314,1734983448150,-500.0,0.00013972,2]
[346455315,1734983448159,-500.0,0.00013972,2]
[346455316,1734983448169,-500.0,0.00013972,2]
[346455317,1734983448178,-500.0,0.00013972,2]
[346455318,1734983448187,-500.0,0.00013972,2]
[346455319,1734983448196,-500.0,0.00013972,2]
[346455320,1734983448206,-790.69,0.00013972,2]
[346455321,1734983448220,-500.0,0.00013972,2]
[346455322,1734983448230,-500.0,0.00013972,2]
[346455323,1734983448239,-500.0,0.00013972,2]
[346455324,1734983448252,-855.0,0.00013972,2]
[346455325,1734983448261,-500.0,0.00013972,2]
[346455326,1734983448271,-500.0,0.00013972,2]
[346455327,1734983448281,-876.69,0.00013972,2]
[346455328,1734983448293,-562.06,0.00013972,2]
[346455329,1734983448303,-500.0,0.00013972,2]
[346455330,1734983448313,-847.08,0.00013972,2]
[346455331,1734983448322,-867.59,0.00013972,2]
[346455332,1734983448332,-500.0,0.00013972,2]
[346455333,1734983448341,-500.0,0.00013972,2]
[346455334,1734983448351,-895.5,0.00013972,2]
[346455335,1734983448360,-500.0,0.00013972,2]
[346455336,1734983448368,-500.0,0.00013972,2]
[346455337,1734983448377,-500.0,0.00013972,2]
[346455338,1734983448386,-1304.71,0.00013972,2]
[346455339,1734983448396,-500.0,0.00013972,2]
[346455340,1734983448406,-537.70924645,0.00013972,2]
[346455341,1734983448416,-500.0,0.00013972,2]
[346455342,1734983448425,-500.0,0.00013972,2]
[346455343,1734983448434,-500.0,0.00013972,2]
[346455344,1734983448444,-1693.88,0.00013972,2]
[346455345,1734983448453,-500.0,0.00013972,2]
[346455346,1734983448463,-500.0,0.00013972,2]
[346455347,1734983448472,-500.0,0.00013972,2]
[346455348,1734983448482,-536.47,0.00013972,2]
[346455349,1734983448491,-500.0,0.00013972,2]
[346455350,1734983448502,-500.0,0.00013972,2]
[346455351,1734983448512,-500.0,0.00013972,2]
[346455352,1734983448521,-500.0,0.00013972,2]
[346455353,1734983448531,-500.0,0.00013972,2]
[346455354,1734983448540,-500.0,0.00013972,2]
[346455355,1734983448550,-704.56,0.00013972,2]
[346455356,1734983448560,-1063.61,0.00013972,2]
[346455357,1734983448570,-500.0,0.00013972,2]
[346455358,1734983448579,-729.4,0.00013972,2]
[346455359,1734983448589,-500.0,0.00013972,2]
[346455360,1734983448599,-500.0,0.00013972,2]
[346455361,1734983448608,-500.0,0.00013972,2]
[346455362,1734983448618,-1288.05,0.00013972,2]
[346455363,1734983448627,-500.0,0.00013972,2]
[346455364,1734983448637,-500.0,0.00013972,2]
[346455365,1734983448647,-500.0,0.00013972,2]
[346455366,1734983448656,-501.2174148,0.00013972,2]
[346455367,1734983448665,-876.88,0.00013972,2]
[346455368,1734983448675,-500.0,0.00013972,2]
[346455369,1734983448684,-500.0,0.00013972,2]
[346455370,1734983448693,-500.0,0.00013972,2]
[346455371,1734983448703,-500.0,0.00013972,2]
[346455372,1734983448712,-500.0,0.00013972,2]
[346455373,1734983448721,-500.0,0.00013972,2]
[346455374,1734983448731,-500.0,0.00013972,2]
[346455375,1734983448740,-627.92,0.00013972,2]
[346455376,1734983448751,-500.0,0.00013972,2]
[346455377,1734983448760,-837.11,0.00013972,2]
[346455378,1734983448770,-500.0,0.00013972,2]
[346455379,1734983448780,-500.0,0.00013972,2]
[346455380,1734983448789,-500.0,0.00013972,2]
[346455381,1734983448799,-715.29,0.00013972,2]
[346455382,1734983448809,-500.0,0.00013972,2]
[346455383,1734983448819,-500.0,0.00013972,2]
[346455384,1734983448830,-500.0,0.00013972,2]
[346455385,1734983448840,-503.14,0.00013972,2]
[346455386,1734983448850,-500.0,0.00013972,2]
[346455387,1734983448860,-693.1,0.00013972,2]
[346455388,1734983448870,-1639.04,0.00013972,2]
[346455389,1734983448879,-500.0,0.00013972,2]
[346455390,1734983448889,-500.0,0.00013972,2]
[346455391,1734983448899,-500.0,0.00013972,2]
[346455392,1734983448909,-909.84,0.00013972,2]
[346455393,1734983448919,-1025.51,0.00013972,2]
[346455394,1734983448929,-500.0,0.00013972,2]
[346455395,1734983448938,-2789.796411,0.00013972,2]
[346455396,1734983448948,-500.0,0.00013972,2]
[346455397,1734983448958,-3350.644444,0.00013972,2]
[346455398,1734983448967,-1267.55,0.00013972,2]
[346455399,1734983448977,-500.0,0.00013972,2]
[346455400,1734983448987,-500.0,0.00013972,2]
[346455401,1734983448997,-500.0,0.00013972,2]
[346455402,1734983449008,-500.0,0.00013972,2]
[346455403,1734983449018,-500.0,0.00013972,2]
[346455404,1734983449028,-500.0,0.00013972,2]
[346455405,1734983449037,-955.34,0.00013972,2]
[346455406,1734983449047,-500.0,0.00013972,2]
[346455407,1734983449057,-500.0,0.00013972,2]
[346455408,1734983449067,-1230.42,0.00013972,2]
[346455409,1734983449077,-500.0,0.00013972,2]
[346455410,1734983449087,-1124.42,0.00013972,2]
[346455411,1734983449097,-500.0,0.00013972,2]
[346455412,1734983449107,-500.0,0.00013972,2]
[346455413,1734983449117,-500.0,0.00013972,2]
[346455414,1734983449128,-500.0,0.00013972,2]
[346455415,1734983449138,-649.71,0.00013972,2]
[346455416,1734983449147,-500.0,0.00013972,2]
[346455417,1734983449158,-500.0,0.00013972,2]
[346455418,1734983449167,-500.0,0.00013972,2]
[346455419,1734983449178,-713.56,0.00013972,2]
[346455420,1734983449187,-500.0,0.00013972,2]
[346455421,1734983449197,-500.0,0.00013972,2]
[346455422,1734983449207,-500.0,0.00013972,2]
[346455423,1734983449221,-500.0,0.00013972,2]
[346455424,1734983449230,-500.0,0.00013972,2]
[346455425,1734983449240,-403.76240817,0.00013972,2]
[346455426,1734983449251,-500.0,0.00013972,2]
[346455427,1734983449262,-500.0,0.00013972,2]
[346455428,1734983449272,-500.0,0.00013972,2]
[346455429,1734983449281,-500.0,0.00013972,2]
[346455430,1734983449292,-500.0,0.00013972,2]
[346455431,1734983449303,-500.0,0.00013972,2]
[346455432,1734983449313,-1323.13,0.00013972,2]
[346455433,1734983449322,-500.0,0.00013972,2]
[346455434,1734983449332,-958.59,0.00013972,2]
[346455435,1734983449341,-938.95,0.00013972,2]
[346455436,1734983449351,-1909.64,0.00013972,2]
[346455437,1734983449360,-500.0,0.00013972,2]
[346455438,1734983449370,-1467.51,0.00013972,2]
[346455439,1734983449380,-958.62,0.00013972,2]
[346455440,1734983449389,-768.8,0.00013972,2]
[346455441,1734983449398,-500.0,0.00013972,2]
[346455442,1734983449408,-563.5,0.00013972,2]
[346455443,1734983449418,-1353.65,0.00013972,2]
[346455444,1734983449427,-743.02,0.00013972,2]
[346455445,1734983449436,-500.0,0.00013972,2]
[346455446,1734983449446,-2120.2,0.00013972,2]
[346455447,1734983449455,-999.63,0.00013972,2]
[346455448,1734983449465,-500.0,0.00013972,2]
[346455449,1734983449474,-500.0,0.00013972,2]
[346455450,1734983449484,-500.0,0.00013972,2]
[346455451,1734983449494,-500.0,0.00013972,2]
[346455452,1734983449505,-730.43,0.00013972,2]
[346455453,1734983449515,-500.0,0.00013972,2]
[346455454,1734983449525,-712.07,0.00013972,2]
[346455455,1734983449535,-1571.45,0.00013972,2]
[346455456,1734983449544,-500.0,0.00013972,2]
[346455457,1734983449554,-500.0,0.00013972,2]
[346455458,1734983449563,-500.0,0.00013972,2]
[346455459,1734983449573,-578.16839612,0.00013972,2]
[346455460,1734983449582,-1386.96,0.00013972,2]
[346455461,1734983449592,-2428.76,0.00013972,2]
[346455462,1734983449602,-500.0,0.00013972,2]
[346455463,1734983449611,-1431.08,0.00013972,2]
[346455464,1734983449622,-500.0,0.00013972,2]
[346455465,1734983449631,-500.0,0.00013972,2]
[346455466,1734983449641,-500.0,0.00013972,2]
[346455467,1734983449650,-500.0,0.00013972,2]
[346455468,1734983449659,-500.0,0.00013972,2]
[346455469,1734983449668,-2535.1,0.00013972,2]
[346455470,1734983449678,-500.0,0.00013972,2]
[346455471,1734983449689,-590.71,0.00013972,2]
[346455472,1734983449698,-500.0,0.00013972,2]
[346455473,1734983449708,-500.0,0.00013972,2]
[346455474,1734983449717,-500.0,0.00013972,2]
[346455475,1734983449726,-500.0,0.00013972,2]
[346455476,1734983449735,-502.98632697,0.00013972,2]
[346455477,1734983449744,-500.0,0.00013972,2]
[346455478,1734983449754,-500.0,0.00013972,2]
[346455479,1734983449764,-500.0,0.00013972,2]
[346455480,1734983449773,-500.0,0.00013972,2]
[346455481,1734983449782,-500.91581233,0.00013972,2]
[346455482,1734983449791,-500.0,0.00013972,2]
[346455483,1734983449801,-647.68,0.00013972,2]
[346455484,1734983449810,-2179.1,0.00013972,2]
[346455485,1734983449819,-500.0,0.00013972,2]
[346455486,1734983449829,-500.0,0.00013972,2]
[346455487,1734983449838,-501.59637976,0.00013972,2]
[346455488,1734983449847,-1741.94,0.00013972,2]
[346455489,1734983449857,-503.57,0.00013972,2]
[346455490,1734983449866,-533.93,0.00013972,2]
[346455491,1734983449876,-502.27398762,0.00013972,2]
[346455492,1734983449885,-500.0,0.00013972,2]
[346455493,1734983449895,-506.11,0.00013972,2]
[346455494,1734983449904,-2546.21,0.00013972,2]
[346455495,1734983449914,-500.0,0.00013972,2]
[346455496,1734983449923,-208.8512126,0.00013972,2]
[346455497,1734983449932,-500.0,0.00013972,2]
[346455498,1734983449942,-500.0,0.00013972,2]
[346455499,1734983449951,-500.0,0.00013972,2]
[346455500,1734983449960,-231.61110716,0.00013972,2]
[346455501,1734983449969,-2384.93,0.00013972,2]
[346455502,1734983449979,-500.0,0.00013972,2]
[346455503,1734983449988,-500.0,0.00013972,2]
[346455504,1734983449997,-1472.51,0.00013972,2]
[346455505,1734983450009,-500.0,0.00013972,2]
[346455506,1734983450019,-500.0,0.00013972,2]
[346455507,1734983450028,-500.0,0.00013972,2]
[346455508,1734983450038,-739.46,0.00013972,2]
[346455509,1734983450047,-2040.74,0.00013972,2]
[346455510,1734983450058,-500.0,0.00013972,2]
[346455511,1734983450068,-500.0,0.00013972,2]
[346455512,1734983450078,-500.0,0.00013972,2]
[346455513,1734983450087,-2108.54,0.00013972,2]
[346455514,1734983450097,-500.0,0.00013972,2]
[346455515,1734983450106,-500.0,0.00013972,2]
[346455516,1734983450115,-503.42569805,0.00013972,2]
[346455517,1734983450125,-500.0,0.00013972,2]
[346455518,1734983450134,-1103.36,0.00013972,2]
[346455519,1734983450143,-500.0,0.00013972,2]
[346455520,1734983450153,-603.59,0.00013972,2]
[346455521,1734983450163,-500.0,0.00013972,2]
[346455522,1734983450172,-500.0,0.00013972,2]
[346455523,1734983450182,-414.36562904,0.00013972,2]
[346455524,1734983450192,-1314.39,0.00013972,2]
[346455525,1734983450202,-681.79,0.00013972,2]
[346455526,1734983450216,-500.0,0.00013972,2]
[346455527,1734983450227,-500.0,0.00013972,2]
[346455528,1734983450236,-1474.25,0.00013972,2]
[346455529,1734983450245,-500.0,0.00013972,2]
[346455530,1734983450257,-569.96,0.00013972,2]
[346455531,1734983450267,-500.0,0.00013972,2]
[346455532,1734983450276,-181.78791143,0.00013972,2]
[346455533,1734983450287,-500.0,0.00013972,2]
[346455534,1734983450297,-2526.97,0.00013972,2]
[346455535,1734983450306,-500.0,0.00013972,2]
[346455536,1734983450315,-588.45,0.00013972,2]
[346455537,1734983450325,-562.03,0.00013972,2]
[346455538,1734983450334,-500.0,0.00013972,2]
[346455539,1734983450343,-500.0,0.00013972,2]
[346455540,1734983450352,-500.0,0.00013972,2]
[346455541,1734983450361,-500.0,0.00013972,2]
[346455542,1734983450370,-2097.31,0.00013972,2]
[346455543,1734983450379,-500.0,0.00013972,2]
[346455544,1734983450389,-500.0,0.00013972,2]
[346455545,1734983450398,-500.0,0.00013972,2]
[346455546,1734983450407,-500.0,0.00013972,2]
[346455547,1734983450417,-2272.82,0.00013972,2]
[346455548,1734983450426,-1399.67,0.00013972,2]
[346455549,1734983450435,-500.0,0.00013972,2]
[346455550,1734983450444,-419.7224915,0.00013972,2]
[346455551,1734983450453,-1081.13,0.00013972,2]
[346455552,1734983450462,-500.0,0.00013972,2]
[346455553,1734983450471,-952.35,0.00013972,2]
[346455554,1734983450480,-500.0,0.00013972,2]
[346455555,1734983450489,-500.0,0.00013972,2]
[346455556,1734983450498,-766.53,0.00013972,2]
[346455557,1734983450508,-500.0,0.00013972,2]
[346455558,1734983450518,-500.0,0.00013972,2]
[346455559,1734983450527,-971.56,0.00013972,2]
[346455560,1734983450536,-500.9966641,0.00013972,2]
[346455561,1734983450546,-1033.9,0.00013972,2]
[346455562,1734983450555,-908.96,0.00013972,2]
[346455563,1734983450564,-1920.11,0.00013972,2]
[346455564,1734983450573,-203.89809909,0.00013972,2]
[346455565,1734983450582,-500.0,0.00013972,2]
[346455566,1734983450592,-500.0,0.00013972,2]
[346455567,1734983450601,-500.0,0.00013972,2]
[346455568,1734983450610,-500.0,0.00013972,2]
[346455569,1734983450619,-500.0,0.00013972,2]
[346455570,1734983450629,-500.0,0.00013972,2]
[346455571,1734983450638,-500.0,0.00013972,2]
[346455572,1734983450647,-1220.95,0.00013972,2]
[346455573,1734983450656,-499.79220351,0.00013972,2]
[346455574,1734983450666,-500.0,0.00013972,2]
[346455575,1734983450675,-500.0,0.00013972,2]
[346455576,1734983450684,-500.0,0.00013972,2]
[346455577,1734983450693,-549.68,0.00013972,2]
[346455578,1734983450703,-2597.65,0.00013972,2]
[346455579,1734983450711,-500.0,0.00013972,2]
[346455580,1734983450721,-500.0,0.00013972,2]
[346455581,1734983450730,-196.33644359,0.00013972,2]
[346455582,1734983450739,-500.0,0.00013972,2]
[346455583,1734983450748,-500.0,0.00013972,2]
[346455584,1734983450758,-500.0,0.00013972,2]
[346455585,1734983450767,-500.0,0.00013972,2]
[346455586,1734983450777,-500.0,0.00013972,2]
[346455587,1734983450787,-1679.77,0.00013972,2]
[346455588,1734983450796,-500.0,0.00013972,2]
[346455589,1734983450806,-500.0,0.00013972,2]
[346455590,1734983450816,-503.52627372,0.00013972,2]
[346455591,1734983450826,-500.0,0.00013972,2]
[346455592,1734983450835,-500.0,0.00013972,2]
[346455593,1734983450845,-500.0,0.00013972,2]
[346455594,1734983450854,-2479.89,0.00013972,2]
[346455595,1734983450864,-501.76658601,0.00013972,2]
[346455596,1734983450873,-500.0,0.00013972,2]
[346455597,1734983450882,-500.0,0.00013972,2]
[346455598,1734983450892,-500.0,0.00013972,2]
[346455599,1734983450901,-500.0,0.00013972,2]
[346455600,1734983450910,-500.0,0.00013972,2]
[346455601,1734983450920,-884.3,0.00013972,2]
[346455602,1734983450929,-533.99,0.00013972,2]
[346455603,1734983450938,-500.0,0.00013972,2]
[346455604,1734983450947,-1337.77,0.00013972,2]
[346455605,1734983450957,-1234.01,0.00013972,2]
[346455606,1734983450966,-500.0,0.00013972,2]
[346455607,1734983450976,-500.0,0.00013972,2]
[346455608,1734983450985,-503.64170356,0.00013972,2]
[346455609,1734983450995,-1693.27,0.00013972,2]
[346455610,1734983451005,-500.0,0.00013972,2]
[346455611,1734983451014,-500.0,0.00013972,2]
[346455612,1734983451024,-1639.66,0.00013972,2]
[346455613,1734983451033,-500.0,0.00013972,2]
[346455614,1734983451043,-1258.33,0.00013972,2]
[346455615,1734983451052,-500.0,0.00013972,2]
[346455616,1734983451061,-500.0,0.00013972,2]
[346455617,1734983451070,-500.0,0.00013972,2]
[346455618,1734983451079,-865.68,0.00013972,2]
[346455619,1734983451088,-500.0,0.00013972,2]
[346455620,1734983451098,-500.0,0.00013972,2]
[346455621,1734983451107,-1242.29,0.00013972,2]
[346455622,1734983451117,-500.0,0.00013972,2]
[346455623,1734983451126,-558.44,0.00013972,2]
[346455624,1734983451135,-500.0,0.00013972,2]
[346455625,1734983451144,-500.0,0.00013972,2]
[346455626,1734983451153,-1883.5,0.00013972,2]
[346455627,1734983451163,-500.0,0.00013972,2]
[346455628,1734983451172,-500.0,0.00013972,2]